bitfinex-derivatives/quotes_BTCF0:USTF0_20210406
["timestamp","ask_amount","ask_price","bid_price","bid_amount"]
[1617732780140,0.1281,58026.0,58021.0,0.27]
[1617732780341,0.1281,58026.0,58025.0,3.8171]
[1617732780541,0.10725655,58027.0,58021.0,0.27]
[1617732780740,0.10725655,58027.0,58025.0,1.27]
[1617732780943,0.10725655,58027.0,58025.0,1.0]
[1617732781342,0.10725655,58027.0,58026.0,0.27]
[1617732781543,0.23535655,58027.0,58026.0,0.27]
[1617732781742,0.23535655,58027.0,58026.0,4.90745655]
[1617732781945,0.23535655,58027.0,58026.0,4.63745655]
[1617732782146,0.23535655,58027.0,58026.0,4.90745655]
[1617732782343,0.10725655,58027.0,58026.0,4.90745655]
[1617732783847,0.10725655,58033.0,58026.0,4.90745655]
[1617732784148,0.10725655,58033.0,58032.0,1.0]
[1617732784350,0.10725655,58033.0,58032.0,1.14039]
[1617732784548,0.10725655,58033.0,58032.0,1.41039]
[1617732785848,0.10725655,58033.0,58032.0,1.51764655]
[1617732786249,0.1281,58049.0,58032.0,1.51764655]
[1617732786650,0.1281,58049.0,58038.0,1.0]
[1617732787050,0.1281,58049.0,58040.0,1.0]
[1617732787350,0.1281,58049.0,58045.0,1.0]
[1617732787550,0.1281,58049.0,58045.0,1.10384]
[1617732787750,0.1281,58049.0,58048.0,2.5824]
[1617732789751,0.23535655,58049.0,58048.0,2.5824]
[1617732790353,0.10725655,58049.0,58048.0,2.5824]
[1617732792853,0.10725655,58049.0,58048.0,3.5824]
[1617732793053,0.10725655,58049.0,58048.0,3.8524]
[1617732793858,0.10725655,58055.0,58048.0,3.8524]
[1617732794153,0.10725655,58055.0,58048.0,2.8524]
[1617732794553,0.10725655,58055.0,58049.0,1.0]
[1617732794754,0.10725655,58055.0,58047.0,4.4974]
[1617732794954,0.10725655,58055.0,58050.0,0.01]
[1617732795155,0.10725655,58055.0,58054.0,1.0]
[1617732795358,0.10725655,58055.0,58054.0,4.1995]
[1617732795556,0.1281,58068.0,58054.0,4.1995]
[1617732795957,0.1281,58068.0,58067.0,0.10725655]
[1617732796157,0.1281,58068.0,58067.0,0.25599655]
[1617732797961,0.1281,58068.0,58067.0,1.25599655]
[1617732798261,0.1281,58068.0,58067.0,0.25599655]
[1617732799460,0.10725655,58072.0,58067.0,0.52599655]
[1617732800260,0.10725655,58072.0,58071.0,1.0]
[1617732801160,0.10725655,58072.0,58067.0,0.25599655]
[1617732801360,0.10725655,58072.0,58070.0,1.0]
[1617732802562,0.10725655,58072.0,58070.0,1.14204]
[1617732803562,0.10725655,58072.0,58070.0,0.14204]
[1617732803763,0.10725655,58072.0,58057.0,1.0]
[1617732803963,0.257,58085.0,58057.0,0.10725655]
[1617732804463,0.257,58085.0,58058.0,0.27]
[1617732804663,0.257,58085.0,58068.0,1.0]
[1617732804863,0.257,58085.0,58069.0,1.0]
[1617732805064,0.257,58085.0,58069.0,1.27]
[1617732805766,0.257,58085.0,58070.0,1.0]
[1617732805967,0.257,58085.0,58071.0,0.10725655]
[1617732807176,0.257,58085.0,58071.0,1.60725655]
[1617732807370,0.1281,58088.0,58087.0,2.6902]
[1617732807568,0.3281,58107.0,58087.0,2.79336]
[1617732807768,0.3281,58107.0,58087.0,3.06336]
[1617732807969,0.1281,58107.0,58105.0,0.10725655]
[1617732808169,0.1281,58107.0,58105.0,0.25948655]
[1617732808368,0.1281,58107.0,58106.0,0.27]
[1617732808571,0.1281,58107.0,58106.0,3.6606]
[1617732809480,0.1281,58107.0,58106.0,4.6606]
[1617732810475,0.1281,58107.0,58106.0,3.6606]
[1617732810674,0.1281,58107.0,58106.0,4.6606]
[1617732811074,0.1281,58107.0,58106.0,1.27]
[1617732811279,0.10725655,58117.0,58106.0,4.6681]
[1617732811576,0.10725655,58117.0,58116.0,1.0]
[1617732811977,0.10725655,58117.0,58116.0,0.10725655]
[1617732814076,0.10725655,58117.0,58116.0,1.10725655]
[1617732814678,0.10725655,58117.0,58116.0,1.37725655]
[1617732817986,0.10725655,58117.0,58116.0,0.37725655]
[1617732818181,0.10725655,58117.0,58116.0,1.37725655]
[1617732819485,0.10725655,58117.0,58116.0,0.37725655]
[1617732819687,0.10725655,58117.0,58116.0,1.37725655]
[1617732820587,0.10725655,58117.0,58116.0,0.37725655]
[1617732820786,0.10725655,58117.0,58116.0,1.37725655]
[1617732822791,0.10725655,58117.0,58116.0,0.37725655]
[1617732822991,0.10725655,58117.0,58116.0,1.37725655]
[1617732824393,0.10725655,58117.0,58116.0,0.37725655]
[1617732824894,0.10725655,58117.0,58116.0,1.37725655]
[1617732827196,0.10725655,58117.0,58116.0,0.37725655]
[1617732827498,0.10725655,58117.0,58116.0,1.37725655]
[1617732831901,0.10725655,58117.0,58116.0,0.37725655]
[1617732832099,0.10725655,58117.0,58116.0,1.37725655]
[1617732832301,0.10725655,58117.0,58116.0,1.37745655]
[1617732832802,0.1281,58137.0,58116.0,0.37745655]
[1617732833099,0.1281,58137.0,58136.0,2.784]
[1617732833299,0.1281,58137.0,58136.0,2.94439]
[1617732834101,0.23535655,58137.0,58136.0,3.05164655]
[1617732834301,0.23535655,58137.0,58136.0,3.050628]
[1617732834501,0.23535655,58137.0,58136.0,0.10725655]
[1617732834702,0.23535655,58137.0,58136.0,2.82625655]
[1617732835202,0.23535655,58137.0,58136.0,2.719]
[1617732838508,0.37059655,58137.0,58136.0,2.719]
[1617732839707,0.23535655,58137.0,58136.0,2.719]
[1617732840907,1.73535655,58137.0,58127.0,1.0]
[1617732841108,3.1374,58136.0,58116.0,0.0002]
[1617732841313,0.2,58135.0,58116.0,0.0002]
[1617732841707,3.24843,58136.0,58117.0,0.27]
[1617732841909,0.2,58135.0,58117.0,0.27]
[1617732842309,0.2,58135.0,58118.0,0.10725655]
[1617732842508,1.7,58135.0,58118.0,0.10725655]
[1617732842708,1.7,58135.0,58119.0,0.27]
[1617732842908,1.7,58130.0,58119.0,0.27]
[1617732844210,0.10725655,58120.0,58119.0,0.27]
[1617732844411,0.26629655,58120.0,58119.0,0.27]
[1617732847215,0.26629655,58120.0,58117.0,0.27]
[1617732847415,0.26629655,58120.0,58119.0,0.27]
[1617732847719,0.26629655,58120.0,58117.0,0.27]
[1617732848620,1.76629655,58120.0,58116.0,0.0002]
[1617732848929,4.25849655,58120.0,58116.0,0.0002]
[1617732849234,1.5,58117.0,58116.0,0.0002]
[1617732849426,2.7,58117.0,58116.0,0.0002]
[1617732850121,2.7,58117.0,58076.0,1.0]
[1617732850321,2.554,58102.0,58078.0,0.10725655]
[1617732850521,1.5,58098.0,58078.0,0.10725655]
[1617732850721,1.5,58098.0,58079.0,0.01]
[1617732850922,2.5,58098.0,58079.0,0.01]
[1617732851128,0.2,58101.0,58079.0,0.01]
[1617732851623,0.2,58101.0,58087.0,3.5241]
[1617732851823,0.2,58101.0,58088.0,0.27]
[1617732852224,0.10725655,58089.0,58088.0,0.27]
[1617732858529,0.10725655,58089.0,58088.0,1.27]
[1617732858733,0.10725655,58089.0,58088.0,0.27]
[1617732858930,0.10725655,58089.0,58088.0,1.27]
[1617732859433,0.1281,58108.0,58088.0,1.27]
[1617732859636,0.1281,58108.0,58088.0,1.42276]
[1617732860032,0.1281,58108.0,58093.0,1.0]
[1617732860433,0.10725655,58094.0,58093.0,1.0]
[1617732860839,0.10725655,58094.0,58093.0,0.27]
[1617732861133,0.10725655,58094.0,58089.0,0.27]
[1617732861335,0.10725655,58094.0,58092.0,0.01]
[1617732861533,0.10725655,58094.0,58093.0,0.26]
[1617732861739,0.10725655,58094.0,58090.0,0.27]
[1617732862136,0.10725655,58094.0,58089.0,0.02]
[1617732862336,0.10725655,58094.0,58087.0,3.78055655]
[1617732862536,0.10725655,58094.0,58091.0,0.27]
[1617732862738,0.10725655,58094.0,58089.0,0.27]
[1617732862939,0.10725655,58094.0,58088.0,0.01]
[1617732863236,0.10725655,58094.0,58087.0,3.78055655]
[1617732863436,0.10725655,58094.0,58088.0,0.27]
[1617732872449,0.10725655,58094.0,58093.0,1.10725655]
[1617732872650,0.10725655,58094.0,58093.0,1.48526655]
[1617732872850,0.10725655,58094.0,58093.0,4.25746655]
[1617732876853,0.10725655,58094.0,58093.0,3.25746655]
[1617732880660,0.10725655,58094.0,58093.0,0.48526655]
[1617732880861,0.10725655,58094.0,58093.0,0.37725655]
[1617732883666,0.10725655,58094.0,58093.0,1.37725655]
[1617732885869,0.10725655,58094.0,58093.0,0.37725655]
[1617732890476,0.10725655,58094.0,58093.0,0.27]
[1617732890877,0.10725655,58094.0,58089.0,0.27]
[1617732891178,0.10725655,58094.0,58093.0,0.27]
[1617732891478,0.10725655,58094.0,58089.0,0.27]
[1617732892581,0.10725655,58094.0,58093.0,0.10725655]
[1617732892779,0.10725655,58094.0,58093.0,1.51403655]
[1617732893179,0.10725655,58094.0,58093.0,4.22303655]
[1617732893382,0.10725655,58094.0,58093.0,5.22303655]
[1617732894080,0.10725655,58094.0,58093.0,4.22303655]
[1617732894484,0.10725655,58094.0,58093.0,5.22303655]
[1617732896282,0.10725655,58094.0,58093.0,4.22303655]
[1617732896481,0.10725655,58094.0,58093.0,4.11578]
[1617732897685,0.10725655,58094.0,58093.0,4.25847016]
[1617732901890,0.10725655,58094.0,58093.0,5.25847016]
[1617732902191,0.10725655,58094.0,58093.0,0.54947016]
[1617732902496,0.10725655,58094.0,58093.0,0.41269016]
[1617732902692,0.23701655,58094.0,58093.0,0.27]
[1617732902990,0.23701655,58094.0,58090.0,0.27]
[1617732903392,0.23701655,58094.0,58093.0,0.27]
[1617732903691,0.23701655,58094.0,58090.0,0.27]
[1617732903896,0.23701655,58094.0,58093.0,0.27]
[1617732904294,0.23701655,58094.0,58090.0,0.27]
[1617732904496,0.23701655,58094.0,58093.0,0.27]
[1617732904695,0.23701655,58094.0,58093.0,3.6072]
[1617732904998,0.23701655,58094.0,58093.0,3.3372]
[1617732905195,0.23701655,58094.0,58093.0,3.6072]
[1617732906196,0.10725655,58094.0,58093.0,3.6072]
[1617732908799,0.10725655,58094.0,58093.0,4.71445655]
[1617732909400,0.10725655,58094.0,58093.0,4.85714771]
[1617732910401,0.10725655,58094.0,58093.0,0.51994771]
[1617732910709,0.10725655,58094.0,58093.0,0.52014771]
[1617732911007,0.10725655,58094.0,58093.0,0.37745655]
[1617732912807,0.10725655,58094.0,58093.0,0.2702]
[1617732917309,0.10725655,58094.0,58093.0,0.40339]
[1617732918911,0.10725655,58094.0,58093.0,0.51064655]
[1617732920813,0.10725655,58094.0,58093.0,1.51064655]
[1617732921012,0.10725655,58094.0,58093.0,5.04944655]
[1617732921617,0.10725655,58094.0,58093.0,5.19213461]
[1617732921914,0.10725655,58094.0,58093.0,1.65333461]
[1617732922118,0.10725655,58094.0,58093.0,1.22354041]
[1617732922316,0.10725655,58094.0,58093.0,2.22354041]
[1617732922514,0.10725655,58094.0,58093.0,0.51064655]
[1617732924218,0.10725655,58094.0,58093.0,1.51064655]
[1617732924618,0.10725655,58094.0,58093.0,2.08084287]
[1617732925319,0.10725655,58094.0,58093.0,1.51064655]
[1617732926223,0.10725655,58094.0,58093.0,2.08081154]
[1617732929625,0.10725655,58094.0,58093.0,1.08081154]
[1617732929824,0.10725655,58094.0,58093.0,2.08081154]
[1617732930425,0.10725655,58094.0,58093.0,1.08081154]
[1617732931628,0.10725655,58094.0,58093.0,0.51064655]
[1617732931827,0.10725655,58094.0,58093.0,0.37745655]
[1617732933033,0.10725655,58094.0,58093.0,0.2702]
[1617732934928,0.10725655,58094.0,58093.0,0.37745655]
[1617732937834,0.10725655,58094.0,58093.0,0.94701517]
[1617732939635,0.10725655,58094.0,58093.0,1.94701517]
[1617732944939,0.10725655,58100.0,58093.0,1.94701517]
[1617732945440,0.10725655,58100.0,58096.0,0.56950462]
[1617732945644,0.10725655,58100.0,58099.0,1.0]
[1617732946044,0.15875655,58100.0,58099.0,1.0]
[1617732946240,0.15875655,58100.0,58099.0,1.27]
[1617732946241,0.10725655,58100.0,58099.0,1.27]
[1617732946942,0.10725655,58100.0,58099.0,1.37725655]
[1617732949448,0.10725655,58100.0,58099.0,4.96585655]
[1617732950144,0.10725655,58100.0,58099.0,5.10854048]
[1617732958556,0.10725655,58100.0,58099.0,1.51994048]
[1617732959257,0.10725655,58100.0,58099.0,0.37725655]
[1617732959457,0.10725655,58100.0,58099.0,1.37725655]
[1617732959657,0.10725655,58100.0,58099.0,0.37725655]
[1617732959957,0.10725655,58100.0,58099.0,1.37725655]
[1617732960160,0.15835655,58100.0,58099.0,1.37725655]
[1617732962860,0.1281,58108.0,58099.0,4.14875655]
[1617732963173,0.1281,58108.0,58107.0,0.10725655]
[1617732963362,0.1281,58108.0,58107.0,1.10725655]
[1617732963564,0.10725655,58121.0,58107.0,1.37725655]
[1617732963974,0.10725655,58121.0,58118.0,1.0]
[1617732964166,0.10725655,58121.0,58120.0,1.0]
[1617732964564,0.1281,58131.0,58120.0,1.0]
[1617732964763,0.1281,58131.0,58130.0,3.1622]
[1617732964964,0.1281,58131.0,58130.0,4.30028]
[1617732965165,0.23535655,58131.0,58130.0,4.67753655]
[1617732965864,0.23535655,58131.0,58130.0,3.67753655]
[1617732966267,0.23535655,58131.0,58130.0,4.67753655]
[1617732967673,0.10725655,58131.0,58130.0,4.67753655]
[1617732969071,0.10725655,58131.0,58130.0,3.67753655]
[1617732969273,0.63121981,58153.0,58130.0,3.67753655]
[1617732969470,0.63121981,58153.0,58130.0,2.01533655]
[1617732969671,0.63121981,58153.0,58151.0,1.0]
[1617732969672,0.1281,58153.0,58151.0,1.0]
[1617732969871,0.1281,58153.0,58152.0,2.9861]
[1617732971073,0.23535655,58153.0,58152.0,2.9861]
[1617732971674,0.23535655,58153.0,58152.0,4.2561]
[1617732973175,0.23535655,58153.0,58152.0,4.36335655]
[1617732974577,0.23535655,58153.0,58152.0,1.37725655]
[1617732976280,0.23535655,58153.0,58152.0,4.32645655]
[1617732978787,0.10725655,58153.0,58152.0,4.32645655]
[1617732983290,0.10725655,58153.0,58152.0,1.37725655]
[1617732986101,0.10725655,58153.0,58152.0,0.37725655]
[1617732986895,0.10725655,58153.0,58152.0,1.37725655]
[1617732988299,0.10725655,58153.0,58152.0,0.37725655]
[1617732988498,0.25203655,58153.0,58152.0,0.27]
[1617732990000,0.10725655,58153.0,58152.0,0.27]
[1617732990600,0.10725655,58153.0,58152.0,1.27]
[1617732991100,0.10725655,58153.0,58152.0,0.27]
[1617732992802,0.21075655,58153.0,58145.0,1.0]
[1617732993002,3.57735655,58153.0,58134.0,1.0]
[1617732993203,0.10725655,58135.0,58134.0,1.0]
[1617732993406,0.24665655,58135.0,58131.0,0.10725655]
[1617732993703,0.24665655,58135.0,58134.0,0.27]
[1617732994104,0.24665655,58135.0,58133.0,0.27]
[1617732996307,0.10725655,58135.0,58133.0,0.27]
[1617732999308,0.10725655,58135.0,58132.0,0.27]
[1617732999709,0.10725655,58135.0,58134.0,0.27]
[1617732999909,0.10725655,58135.0,58132.0,0.27]
[1617733000212,0.10725655,58135.0,58131.0,0.10725655]
[1617733000213,0.10725655,58135.0,58134.0,0.27]
[1617733000711,0.10725655,58135.0,58132.0,1.27]
[1617733000911,0.10725655,58135.0,58134.0,0.27]
[1617733001112,0.10725655,58135.0,58133.0,0.01]
[1617733001512,0.10725655,58135.0,58134.0,0.26]
[1617733001713,0.10725655,58135.0,58133.0,0.27]
[1617733001914,0.10725655,58135.0,58133.0,1.27]
[1617733002118,0.10725655,58135.0,58134.0,0.27]
[1617733002415,0.10725655,58135.0,58131.0,0.10725655]
[1617733002615,0.10725655,58135.0,58134.0,0.27]
[1617733003014,0.10725655,58135.0,58131.0,0.10725655]
[1617733003314,0.10725655,58135.0,58134.0,0.27]
[1617733003714,0.10725655,58135.0,58134.0,1.0]
[1617733004115,0.10725655,58135.0,58134.0,1.27]
[1617733004316,0.10725655,58135.0,58134.0,0.3971]
[1617733004519,0.10725655,58135.0,58134.0,4.1091]
[1617733004719,0.257,58157.0,58134.0,4.1091]
[1617733005223,0.257,58157.0,58149.0,1.0]
[1617733005423,0.23535655,58150.0,58149.0,1.12204]
[1617733005917,0.23535655,58150.0,58149.0,0.13204]
[1617733006921,0.23535655,58150.0,58149.0,1.13204]
[1617733007222,0.23535655,58150.0,58149.0,0.13204]
[1617733007921,0.23535655,58150.0,58149.0,0.01]
[1617733009323,0.23535655,58150.0,58149.0,0.10725655]
[1617733009523,0.23535655,58150.0,58149.0,0.12725655]
[1617733010126,0.23535655,58150.0,58149.0,1.12725655]
[1617733011026,0.23535655,58150.0,58149.0,4.10867655]
[1617733012427,0.10725655,58150.0,58149.0,4.10867655]
[1617733023137,0.10725655,58150.0,58149.0,4.2512257]
[1617733024943,0.035,58158.0,58149.0,4.2512257]
[1617733025340,0.035,58158.0,58157.0,0.10725655]
[1617733025740,0.035,58158.0,58157.0,4.32855655]
[1617733028450,0.035,58158.0,58157.0,3.32855655]
[1617733028743,0.035,58158.0,58157.0,4.32855655]
[1617733028946,0.035,58158.0,58157.0,1.37725655]
[1617733029244,0.035,58158.0,58157.0,4.41025655]
[1617733040864,0.035,58158.0,58157.0,1.37725655]
[1617733041168,0.035,58158.0,58157.0,0.37725655]
[1617733041565,0.035,58158.0,58157.0,1.37725655]
[1617733043662,0.035,58158.0,58157.0,0.37725655]
[1617733043966,0.035,58158.0,58157.0,1.37725655]
[1617733044862,0.035,58158.0,58157.0,4.29445655]
[1617733045476,0.035,58158.0,58157.0,4.29465655]
[1617733045764,0.035,58158.0,58157.0,3.29465655]
[1617733045964,0.035,58158.0,58157.0,4.29465655]
[1617733061493,0.035,58158.0,58157.0,4.85954104]
[1617733063394,0.035,58158.0,58157.0,4.91124104]
[1617733063694,0.035,58158.0,58157.0,4.85954104]
[1617733067295,0.10725655,58169.0,58157.0,4.85954104]
[1617733067698,0.10725655,58169.0,58168.0,1.07225655]
[1617733067897,0.10725655,58169.0,58168.0,1.19875655]
[1617733068099,0.10725655,58169.0,58168.0,1.46875655]
[1617733071102,0.10725655,58169.0,58168.0,0.46875655]
[1617733071304,0.10725655,58169.0,58168.0,1.46875655]
[1617733072306,0.10725655,58169.0,58168.0,0.46875655]
[1617733072505,0.10725655,58169.0,58168.0,0.34225655]
[1617733074608,0.10725655,58169.0,58168.0,1.34225655]
[1617733075609,2.7306,58173.0,58168.0,1.27]
[1617733075911,2.7306,58173.0,58170.0,1.0]
[1617733076109,0.1281,58174.0,58170.0,1.0]
[1617733076110,0.1281,58174.0,58173.0,0.10725655]
[1617733076509,0.1281,58174.0,58173.0,0.11725655]
[1617733078110,0.23535655,58174.0,58173.0,0.11725655]
[1617733082316,0.10725655,58174.0,58173.0,0.11725655]
[1617733085725,0.2,58173.0,58168.0,0.0002]
[1617733085927,1.5,58172.0,58168.0,0.0002]
[1617733086327,1.7,58172.0,58168.0,0.0002]
[1617733087627,2.5589,58169.0,58168.0,0.0002]
[1617733087926,2.67698,58169.0,58168.0,0.0002]
[1617733088126,4.17698,58169.0,58168.0,0.0002]
[1617733088429,2.67698,58169.0,58168.0,0.0002]
[1617733088640,0.11808,58169.0,58168.0,0.0002]
[1617733088831,0.10725655,58174.0,58168.0,0.0002]
[1617733089529,0.10725655,58174.0,58163.0,3.5665]
[1617733090130,0.10725655,58164.0,58163.0,3.5665]
[1617733093335,0.0513,58163.0,58154.0,0.56894517]
[1617733093635,0.10725655,58164.0,58154.0,0.56894517]
[1617733093835,0.10725655,58164.0,58155.0,0.27]
[1617733094238,2.6656,58166.0,58156.0,0.10725655]
[1617733094637,2.6656,58166.0,58157.0,0.27]
[1617733096238,0.10725655,58158.0,58157.0,0.27]
[1617733097239,0.10725655,58158.0,58157.0,3.2176]
[1617733098352,0.10725655,58158.0,58157.0,1.27]
[1617733098543,3.26135655,58158.0,58157.0,1.27]
[1617733098744,3.26135655,58158.0,58157.0,0.27]
[1617733099246,3.26135655,58158.0,58156.0,0.27]
[1617733099447,3.26135655,58158.0,58151.0,0.01]
[1617733099649,3.26135655,58158.0,58157.0,0.26]
[1617733099850,3.26135655,58158.0,58148.0,1.0]
[1617733100050,3.26135655,58158.0,58152.0,0.02]
[1617733100450,3.26135655,58158.0,58147.0,0.26]
[1617733100651,3.26135655,58158.0,58149.0,0.26]
[1617733100852,4.76135655,58158.0,58145.0,0.56927768]
[1617733101052,4.76135655,58158.0,58148.0,0.26]
[1617733101453,4.76135655,58158.0,58143.0,0.4875]
[1617733101653,4.76135655,58158.0,58149.0,0.26]
[1617733102054,4.76135655,58158.0,58143.0,0.4875]
[1617733102353,0.10725655,58144.0,58143.0,0.4875]
[1617733102554,0.21417655,58144.0,58143.0,0.7575]
[1617733102754,0.21417655,58144.0,58143.0,0.27]
[1617733108462,0.21417655,58144.0,58143.0,3.0425]
[1617733110865,0.10725655,58144.0,58143.0,3.0425]
[1617733112068,0.15855655,58144.0,58143.0,3.0425]
[1617733112269,0.10725655,58144.0,58143.0,3.0425]
[1617733112668,0.10725655,58144.0,58143.0,0.27]
[1617733113068,2.73205655,58144.0,58143.0,0.27]
[1617733113668,0.10725655,58144.0,58143.0,0.27]
[1617733113868,0.10725655,58144.0,58137.0,2.4985]
[1617733114168,0.10725655,58144.0,58143.0,0.01]
[1617733114369,0.1281,58154.0,58143.0,0.01]
[1617733114570,0.1281,58154.0,58139.0,0.10725655]
[1617733114775,0.1281,58154.0,58144.0,0.27]
[1617733115169,0.1281,58154.0,58139.0,0.10725655]
[1617733115369,0.1281,58154.0,58141.0,0.01]
[1617733115570,0.1281,58154.0,58145.0,0.26]
[1617733115871,0.1281,58154.0,58141.0,0.27]
[1617733116371,0.10725655,58141.0,58139.0,0.10725655]
[1617733116570,0.10725655,58141.0,58140.0,0.27]
[1617733119375,0.10725655,58141.0,58140.0,0.39175]
[1617733123680,0.10725655,58141.0,58140.0,0.27]
[1617733126485,0.10725655,58141.0,58140.0,2.7462]
[1617733127386,0.10725655,58141.0,58140.0,2.7464]
[1617733128485,0.1281,58154.0,58153.0,0.10725655]
[1617733128685,0.1281,58154.0,58153.0,0.26208655]
[1617733129686,0.1281,58154.0,58153.0,0.15483]
[1617733129886,0.1281,58154.0,58152.0,3.4174]
[1617733130588,0.10725655,58153.0,58152.0,3.4174]
[1617733130889,0.10725655,58153.0,58152.0,3.6874]
[1617733136200,0.10725655,58153.0,58152.0,3.8179]
[1617733141204,0.10725655,58153.0,58152.0,3.6874]
[1617733141402,0.10725655,58153.0,58152.0,3.6876]
[1617733141602,0.10725655,58153.0,58152.0,0.2702]
[1617733141803,0.22306655,58153.0,58152.0,0.2702]
[1617733144304,0.10725655,58153.0,58152.0,0.2702]
[1617733186065,0.10725655,58153.0,58152.0,3.9135]
[1617733186966,0.10725655,58153.0,58152.0,4.05606002]
[1617733189872,0.0511,58165.0,58152.0,4.25606002]
[1617733190169,0.0511,58165.0,58152.0,5.25606002]
[1617733190369,0.1281,58167.0,58164.0,1.0]
[1617733190569,0.1281,58167.0,58164.0,1.09841]
[1617733190777,0.1281,58167.0,58165.0,0.27]
[1617733190973,0.1281,58167.0,58166.0,0.10725655]
[1617733191269,0.1281,58167.0,58166.0,0.37725655]
[1617733192972,0.23535655,58167.0,58166.0,1.37725655]
[1617733193373,0.10725655,58167.0,58166.0,1.37725655]
[1617733193575,0.10725655,58167.0,58166.0,4.79165655]
[1617733199081,0.10725655,58167.0,58166.0,4.79185655]
[1617733201682,0.10725655,58167.0,58166.0,3.79185655]
[1617733204886,0.10725655,58167.0,58166.0,3.6846]
[1617733206086,0.15935655,58167.0,58166.0,3.6846]
[1617733206994,0.10725655,58167.0,58166.0,3.6846]
[1617733216600,0.10725655,58167.0,58166.0,0.2702]
[1617733217001,3.73675655,58167.0,58166.0,0.2702]
[1617733219301,0.10725655,58167.0,58166.0,0.2702]
[1617733220302,0.10725655,58167.0,58166.0,3.2597]
[1617733239934,0.10725655,58167.0,58166.0,0.2702]
[1617733240134,3.16345655,58167.0,58166.0,0.2702]
[1617733241534,0.10725655,58167.0,58166.0,0.2702]
[1617733241736,0.10725655,58167.0,58166.0,3.745]
[1617733250848,0.10725655,58167.0,58166.0,0.2702]
[1617733251051,2.77895655,58167.0,58166.0,0.0002]
[1617733251455,2.92927655,58167.0,58166.0,0.0002]
[1617733251649,4.42927655,58167.0,58166.0,0.0002]
[1617733253752,4.48077655,58167.0,58166.0,0.0002]
[1617733253952,4.42927655,58167.0,58166.0,0.0002]
[1617733254252,4.93846806,58167.0,58166.0,0.0002]
[1617733256957,5.93846806,58167.0,58166.0,0.0002]
[1617733257256,4.93846806,58167.0,58166.0,0.0002]
[1617733258758,4.42927655,58167.0,58166.0,0.0002]
[1617733259359,4.48097655,58167.0,58166.0,0.0002]
[1617733261161,5.48097655,58167.0,58166.0,0.0002]
[1617733261564,4.48097655,58167.0,58166.0,0.0002]
[1617733261763,6.18933626,58167.0,58166.0,0.0002]
[1617733281586,6.18933626,58167.0,58130.0,0.56172249]
[1617733281587,5.18933626,58167.0,58130.0,0.56172249]
[1617733281790,11.18933626,58167.0,58130.0,0.52072249]
[1617733281984,11.18933626,58167.0,58099.0,0.2]
[1617733281985,8.51763626,58167.0,58113.0,0.70338295]
[1617733282186,8.51763626,58167.0,58106.0,0.70445371]
[1617733282187,3.4272,58115.0,58106.0,0.70445371]
[1617733282386,0.12148,58115.0,58106.0,0.70445371]
[1617733282687,0.12148,58115.0,58103.0,0.70458233]
[1617733282888,0.12148,58115.0,58107.0,0.27]
[1617733283086,0.12148,58115.0,58105.0,0.27]
[1617733283288,3.4268,58108.0,58099.0,0.70518843]
[1617733283586,3.6405,58123.0,58107.0,2.7591]
[1617733283888,3.6405,58132.0,58122.0,2.7591]
[1617733285490,0.10725655,58123.0,58122.0,2.7591]
[1617733286688,0.10725655,58123.0,58120.0,0.10725655]
[1617733286888,2.6648,58121.0,58120.0,0.10725655]
[1617733287493,2.6648,58121.0,58114.0,0.10725655]
[1617733288891,0.10725655,58123.0,58114.0,0.10725655]
[1617733288892,0.10725655,58123.0,58114.0,1.10725655]
[1617733289093,0.10725655,58123.0,58122.0,2.9746]
[1617733289493,0.10725655,58115.0,58114.0,1.24481655]
[1617733291393,0.10725655,58115.0,58114.0,0.24481655]
[1617733291595,0.10725655,58115.0,58114.0,0.10725655]
[1617733296497,0.10725655,58115.0,58114.0,0.26166655]
[1617733299002,0.10725655,58115.0,58114.0,1.26166655]
[1617733299201,0.10725655,58115.0,58114.0,0.26166655]
[1617733304910,0.10725655,58115.0,58114.0,3.56786655]
[1617733305108,0.10725655,58115.0,58114.0,4.83786655]
[1617733306110,0.10725655,58115.0,58114.0,0.53166655]
[1617733307311,0.10725655,58115.0,58114.0,1.53166655]
[1617733307511,0.10725655,58115.0,58114.0,5.01996655]
[1617733308313,0.10725655,58115.0,58114.0,5.16260459]
[1617733310518,0.10623774,58115.0,58114.0,5.16260459]
[1617733312526,0.10623774,58115.0,58114.0,4.16260459]
[1617733313524,0.10623774,58115.0,58114.0,4.01996655]
[1617733315727,0.10623774,58115.0,58114.0,1.53166655]
[1617733316127,0.10623774,58115.0,58114.0,0.6743033]
[1617733316128,3.54543774,58115.0,58114.0,0.6743033]
[1617733316327,3.54543774,58115.0,58114.0,0.5198933]
[1617733316628,3.54543774,58115.0,58114.0,0.37725655]
[1617733316933,0.10623774,58115.0,58114.0,0.37725655]
[1617733317328,0.10623774,58115.0,58114.0,1.37725655]
[1617733318030,0.10623774,58115.0,58114.0,0.37725655]
[1617733321634,3.36043774,58115.0,58114.0,0.37725655]
[1617733321835,3.35941892,58115.0,58114.0,0.37725655]
[1617733322036,3.35941892,58115.0,58114.0,1.37725655]
[1617733323036,3.35941892,58115.0,58114.0,1.9410617]
[1617733323438,3.35941892,58115.0,58114.0,1.37725655]
[1617733326437,3.35941892,58115.0,58114.0,0.37725655]
[1617733328043,0.10521892,58115.0,58114.0,0.37725655]
[1617733328239,0.10521892,58115.0,58114.0,3.69365655]
[1617733328741,0.10521892,58115.0,58114.0,4.69365655]
[1617733329339,0.10521892,58115.0,58114.0,4.83629389]
[1617733329740,0.10521892,58115.0,58114.0,5.39905895]
[1617733332342,0.10420011,58115.0,58114.0,5.39905895]
[1617733337454,0.10420011,58115.0,58114.0,2.08265895]
[1617733337654,0.10420011,58115.0,58114.0,4.73915895]
[1617733338051,0.10420011,58115.0,58114.0,4.59652161]
[1617733338654,0.10420011,58115.0,58114.0,1.94002161]
[1617733338854,2.69010011,58115.0,58114.0,1.94002161]
[1617733340959,0.10420011,58115.0,58114.0,1.94002161]
[1617733341161,0.10420011,58115.0,58114.0,5.56206571]
[1617733341561,0.10420011,58115.0,58114.0,5.70471209]
[1617733342559,0.10318121,58115.0,58114.0,5.70471209]